Cogmind - Beta 14 @@@ ROGUE MODE // 2024.08.24 @ 00:38:09 Player: Syanka Result: Destroyed by 2D-OOM(z) with Zionite Laser-S Performance ------------- Evolutions (3) 1500 Regions Visited (8) 1600 Robots Destroyed (187) 935 Value Destroyed (5948) 5948 Prototype IDs (25) 500 Alien Tech Used (0) 0 Bonus (3864) 3864 TOTAL SCORE: 14347 Bonus ------- High Alert Combat Kills 1379 Follower Combat Kills 185 Met Imprinter 300 Destroyed Z-Imprinter 1000 Triggered Deep Caves Wall 500 Exposed GOLEM Chamber 500 Cogmind --------- Core Integrity 0/700 Matter 257/300 Energy 100/100 System Corruption 0% Temperature Warm (189) Movement Core (2200) Ox43 Location -7/Deep Caves Parts ------- > --- POWER (2) -------- Assembled Flux Generator > --- PROPULSION (4) --- Assembled Alloy Leg Assembled Alloy Leg > --- UTILITY (5) ------ Experimental Heat Sink Huge Storage Unit GOLEM Unit > --- WEAPON (2) ------- Neutron Cannon > --- INVENTORY (25) --- Zionite Light DM Reactor Advanced Energy Well (500) Advanced Energy Well (500) Zionite Biocell (600) Machine Analyzer Surveybot 24 Scanner Surveybot 24 Chip Tactical Coordination Suite Advanced Particle Charger Supersonic Drone Bay (1/1) Hacking Drone Bay (1/1) GOLEM Unit GOLEM Unit Heavy Riot Gun Improved Datajack Power Maul Peak State ------------ > --- POWER ------------ Assembled Flux Generator > --- PROPULSION ------- Light Treads Medium Treads Assembled Alloy Leg Assembled Alloy Leg > --- UTILITY ---------- Assembled Nanovents Huge Storage Unit Assembled Biocell Array GOLEM Unit > --- WEAPON ----------- Neutron Cannon Assembled Focal Cannon > --- INVENTORY -------- Zionite Light DM Reactor Experimental Heat Sink Advanced Energy Well Advanced Energy Well Zionite Biocell Zionite Biocell Machine Analyzer Surveybot 24 Scanner Surveybot 24 Chip Tactical Coordination Suite Advanced Particle Charger Supersonic Drone Bay Hacking Drone Bay GOLEM Unit GOLEM Unit Heavy Riot Gun Neutron Cannon Improved Datajack Power Maul [Rating: 105] Favorites ----------- Power Reinforced Ion Engine Engine Reinforced Ion Engine Power Core Light Nuclear Core Reactor Zionite Light DM Reactor Propulsion Light Treads Treads Light Treads Leg Assembled Alloy Leg Wheel Wheel Hover Unit Zionite Glidesys I Utility Huge Storage Unit Device Improved Heat Sink Storage Huge Storage Unit Processor Core Analyzer Hackware Hacking Suite Protection Hardened Medium Armor Plating Weapon Cooled Pulse Rifle Energy Gun Cooled Pulse Rifle Energy Cannon Assembled Focal Cannon Ballistic Gun Light Assault Rifle Launcher Rocket Launcher Impact Weapon Power Maul Special Melee Weapon Improved Datajack Build | -11 -10 -9 -8 -7 -7 -7 -7 -7 ------- Run | Yrd Mat Mat Mat Fac Low Low Zio Dee Slots Evolved 6 | . . 2 2 2 . . . . Power 1 | . . . . 1 . . . . Propulsion 2 | . . 1 1 . . . . . Utility 3 | . . 1 1 1 . . . . Weapon . | . . . . . . . . . Parts Attached 230 | 8 15 71 44 15 10 9 9 49 Power 17 | 1 2 3 4 2 . . . 5 Engine 10 | 1 2 3 1 2 . . . 1 Core 3 | . . . 3 . . . . . Reactor 4 | . . . . . . . . 4 Propulsion 58 | 2 8 19 14 3 1 2 1 8 Treads 51 | . 4 19 14 3 1 2 1 7 Leg . | . . . . . . . . . Wheel 6 | 2 4 . . . . . . . Hover 1 | . . . . . . . . 1 Flight . | . . . . . . . . . Utility 75 | 2 2 20 15 8 3 5 2 18 Device 38 | 1 1 11 9 2 2 . 2 10 Storage 3 | 1 1 . . . . . . 1 Processor 4 | . . . 2 1 1 . . . Hackware 3 | . . . 1 2 . . . . Protection 27 | . . 9 3 3 . 5 . 7 Artifact . | . . . . . . . . . Weapon 80 | 3 3 29 11 2 6 2 6 18 Energy Gun 50 | 2 1 23 6 2 3 1 3 9 Energy Cannon 3 | . . 1 . . . . . 2 Ballistic Gun 3 | 1 2 . . . . . . . Ballistic Cannon . | . . . . . . . . . Launcher 18 | . . 5 5 . 1 1 . 6 Special Weapon . | . . . . . . . . . Impact Weapon 2 | . . . . . . . 1 1 Slashing Weapon . | . . . . . . . . . Piercing Weapon . | . . . . . . . . . Special Melee Weapon 4 | . . . . . 2 . 2 . Unidentified Prototypes 13 | . . 4 . 1 . . 1 7 Parts Lost 32 | . 1 2 . . 1 3 . 25 Power 3 | . . . . . . . . 3 Propulsion 10 | . . . . . . 2 . 8 Utility 11 | . . 2 . . 1 1 . 7 Weapon 8 | . 1 . . . . . . 7 Highest Loss Streak 12 | . 1 1 . . 1 3 . 12 To Critical Strikes . | . . . . . . . . . Average Slot Usage (%) 98 | . 100 99 99 100 99 99 100 91 Engine 9 | . 14 11 . 15 15 15 15 5 Core 1 | . . . 8 . . . . . Treads 29 | . 9 32 36 30 30 29 30 24 Wheel 1 | . 18 . . . . . . . Device 12 | . 14 15 15 11 14 7 7 11 Storage 9 | . 14 11 9 7 7 7 7 8 Processor 3 | . . . 1 4 . 7 7 4 Protection 9 | . . 6 8 12 15 15 15 7 Energy Gun 16 | . 23 21 17 15 14 14 14 8 Peak Build Rating 105 | 7 10 24 37 43 47 46 53 105 Average Rating 39 | 5 7 19 32 40 45 44 49 69 On Entrance 28 | . 7 10 24 34 43 46 45 50 Naked Turns . | . . . . . . . . . Heaviest Build 155 | 15 90 102 107 132 133 127 121 155 Greatest Support 91 | 26 40 60 89 86 86 86 91 91 Greatest Overweight (x) 5 | . 4 1 1 1 1 1 1 5 Average Overweight (x) 1 | . 3 1 1 1 1 1 1 1 Largest Inventory Capacity 25 | 8 25 25 25 25 25 25 25 25 Average Capacity 24 | 7 19 25 25 25 25 25 25 25 Most Carried 25 | 8 19 25 25 25 25 24 25 25 Average Carried 23 | 5 11 24 24 24 24 21 24 23 Final Capacity 25 | 8 25 25 25 25 25 25 25 25 Final Carried 25 | 8 19 25 25 25 24 23 25 18 Class Distribution -------------------- 69% | Scavenger-Mutant 25% | Mutant Dominant Class ---------------- Mutant | -10/Materials Scavenger-Mutant | -9/Materials Mutant | -8/Materials Mutant | -7/Factory Scavenger-Mutant | -7/Lower Caves Scavenger-Mutant | -7/Lower Caves Scavenger-Mutant | -7/Zion Scavenger-Mutant | -7/Deep Caves Resources | -11 -10 -9 -8 -7 -7 -7 -7 -7 ----------- Run | Yrd Mat Mat Mat Fac Low Low Zio Dee Matter Collected 3255 | 280 117 1056 588 150 69 218 60 717 Remotely . | . . . . . . . . . Salvage Created 8199 | 175 551 2559 2571 267 489 476 . 1111 Parts 397 | 14 37 149 133 15 14 17 . 18 Haulers Intercepted 13 | . 1 6 5 1 . . . . Recyclers Shooed 4 | . . 2 2 . . . . . Parts Field Recycled . | . . . . . . . . . Retrieved Matter . | . . . . . . . . . Parts Self-Destructed 21 | . . . . . 3 16 2 . Prevented . | . . . . . . . . . Kills | -11 -10 -9 -8 -7 -7 -7 -7 -7 ------- Run | Yrd Mat Mat Mat Fac Low Low Zio Dee Combat Hostiles Destroyed 197 | . 14 48 48 3 10 11 . 63 Guns 97 | . 14 34 33 3 7 5 . 1 Cannons 3 | . . . . . . . . 3 AOE 85 | . . 10 13 . 3 6 . 53 Classes Destroyed 20 | 2 5 6 1 . 2 . . 4 Worker 14 | . . 9 3 2 . . . . Builder 2 | . . 1 1 . . . . . Tunneler 7 | 4 . 1 2 . . . . . Hauler 13 | . 1 6 5 1 . . . . Recycler 8 | 1 . 4 3 . . . . . Operator 4 | . 1 2 1 . . . . . Watcher 11 | . 3 3 5 . . . . . Swarmer 17 | . 6 . 7 . 4 . . . Grunt 81 | . 8 33 28 2 . 10 . . Brawler 4 | . . 3 1 . . . . . Duelist 3 | . . 1 1 . . 1 . . Protector 2 | . . 1 1 . . . . . Sentry 19 | . . 10 8 1 . . . . Hunter 2 | . . . 2 . . . . . Z-Light 4 | . . . . . . . . 4 Samaritan 2 | . . . . . 2 . . . Assembler 2 | . . . . . . . . 2 Assembled 40 | . . . . . . . . 40 Golem 19 | . . . . . . . . 19 Thug 5 | . . . . . 5 . . . Mutant 1 | . . . . . 1 . . . Best Kill Streak 42 | 3 3 7 6 2 4 7 . 42 Combat Bots Only 40 | . 3 5 5 2 4 7 . 40 Max Kills in Single Turn 15 | 1 2 4 3 1 2 2 . 15 Gunslinging 1 | . . . . . 1 . . . Exploded 15 | . . 3 3 . 2 2 . 15 Melee . | . . . . . . . . . Uniques/NPCs Destroyed 1 | . . . . . . . . 1 Z-Imprinter (-7/Deep Caves) Combat | -11 -10 -9 -8 -7 -7 -7 -7 -7 -------- Run | Yrd Mat Mat Mat Fac Low Low Zio Dee Hostile Shots Fired 700 | . 62 135 176 35 38 40 . 214 Missed 196 | . 22 32 53 14 10 9 . 56 Damage Taken 9277 | . 428 1411 1645 153 378 657 . 4605 Core 1291 | . 77 267 235 33 . 105 . 574 Absorbed by Shields 576 | . . . 442 9 125 . . . Redirected to Shielding 52 | . . 52 . . . . . . Ignored by Resistances 207 | . . . 76 18 28 24 . 61 Regen/Repaired (Parts) 134 | . . 84 50 . . . . . Core Remaining (%) 64 | 100 69 33 57 . . . . . Volleys Fired 502 | 8 69 138 151 15 31 15 1 74 Largest 2 | 2 2 2 2 2 2 2 2 2 Hottest 180 | 100 100 122 130 130 120 120 40 180 Shots Fired 939 | 16 137 266 293 30 58 24 2 113 Gun 848 | 16 137 252 281 30 55 18 2 57 Cannon 31 | . . . . . . . . 31 Launcher 60 | . . 14 12 . 3 6 . 25 Special . | . . . . . . . . . Kinetic 26 | . 25 1 . . . . . . Thermal 808 | 16 112 251 281 30 55 18 2 43 Explosive 60 | . . 14 12 . 3 6 . 25 Electromagnetic 45 | . . . . . . . . 45 Robot Hit Streak 23 | 10 13 20 22 11 21 23 . 21 Robot Miss Streak 10 | 1 4 7 10 2 2 1 . 4 Penetration Max . | . . . . . . . . . Secondary Targets 12 | . 2 2 6 . 1 1 . . Max Gunslinging Chain 1 | . 1 1 1 . 1 1 . . Shots Hit Robots 634 | 12 86 183 180 25 51 17 2 78 Core Hits 596 | 6 33 116 112 13 26 18 . 272 Critical Kills . | . . . . . . . . . Critical Parts Destroyed 1 | . . . . . . . . 1 Critical Strikes 47 | 1 8 22 14 1 . . . 1 Burn 46 | 1 8 22 14 1 . . . . Smash 1 | . . . . . . . . 1 Melee Attacks 8 | . . . . . 4 . 3 1 Impact 2 | . . . . . . . 1 1 Slashing . | . . . . . . . . . Piercing . | . . . . . . . . . Sneak Attacks 6 | . . . . . 4 . 2 . Combat Hostiles . | . . . . . . . . . Follow-up Attacks . | . . . . . . . . . Damage Inflicted 23069 | 154 1004 4677 5204 485 1351 1046 . 9148 Guns 10386 | 154 1004 2855 3655 475 1113 365 . 765 Cannons 413 | . . . . . . . . 413 Explosions 11992 | . . 1737 1422 . 238 681 . 7914 Melee 56 | . . . . . . . . 56 Ramming 222 | . . 85 127 10 . . . . Kinetic 140 | . 140 . . . . . . . Thermal 10358 | 154 864 3169 3655 475 1113 365 . 563 Explosive 11678 | . . 1423 1422 . 238 681 . 7914 Electromagnetic 615 | . . . . . . . . 615 Impact 56 | . . . . . . . . 56 Slashing . | . . . . . . . . . Piercing . | . . . . . . . . . Highest Corruption 5 | . . 5 . . . . . . Average Corruption 4 | . . 4 . . . . . . Corruption Purged . | . . . . . . . . . Corruption Blocked . | . . . . . . . . . Effects 73 | . . 73 . . . . . . Message Errors 13 | . . 13 . . . . . . Matter Fused 25 | . . 25 . . . . . . Heat Flow Errors 10 | . . 10 . . . . . . Energy Discharges 6 | . . 6 . . . . . . Parts Fused 2 | . . 2 . . . . . . Data Loss (minor) 8 | . . 8 . . . . . . Data Loss (major) 3 | . . 3 . . . . . . Misfires 5 | . . 5 . . . . . . Weapon Failures 1 | . . 1 . . . . . . Overload Shots 20 | . . . . . 12 8 . . Effects 1 | . . . . . 1 . . . Energy Bleed 1 | . . . . . 1 . . . Overflow Damage 515 | . . 166 17 . . 13 . 319 Projectiles 5 | . . . . . . . . 5 Explosions 454 | . . 166 17 . . 13 . 258 Melee 56 | . . . . . . . . 56 Knockbacks 3 | . . 1 2 . . . . . Impact 3 | . . 1 2 . . . . . Kinetic . | . . . . . . . . . Secondary . | . . . . . . . . . Self-Inflicted Damage 514 | . . 86 159 . . 143 . 126 Shots 13 | . . 3 5 . . 3 . 2 Rammed 22 | . . 12 10 . . . . . Targets Rammed 28 | . . 13 14 1 . . . . Kicked . | . . . . . . . . . Crushed 6 | . . 1 4 1 . . . . Highest Temperature 298 | 156 264 226 283 90 123 135 . 298 Average Temperature 58 | 65 63 38 55 33 50 48 . 107 Received Heat Transfer 2919 | . 198 609 656 62 155 279 . 960 Effects 5 | . . . 5 . . . . . Interference 5 | . . . 5 . . . . . Siege Activations . | . . . . . . . . . Robots Corrupted 7 | . . 1 . . . . . 6 Combat Hostiles 6 | . . . . . . . . 6 Parts Fried 3 | . . 2 1 . . . . . Impact Corruptions 2 | . . 1 . . . . . 1 Robots Melted 5 | . . 4 1 . . . . . Combat Hostiles 5 | . . 4 1 . . . . . Parts Melted 62 | 1 13 26 18 3 1 . . . Heat Transferred 23310 | 518 3145 7979 7807 999 1882 559 . 421 Parts Sabotaged . | . . . . . . . . . Parts Stolen . | . . . . . . . . . Parts Stripped . | . . . . . . . . . Power Chain Reactions . | . . . . . . . . . Alert | -11 -10 -9 -8 -7 -7 -7 -7 -7 ------- Run | Yrd Mat Mat Mat Fac Low Low Zio Dee Peak Influence 1464 | 25 258 1109 1464 687 . . . . Initial 665 | . 16 20 468 665 . . . . Average 579 | 11 119 496 903 462 . . . . Maximum Alert Level 4 | . 1 4 4 2 . . . . Low Security (%) 18 | 100 86 13 . 3 . . . . Level 1 14 | . 13 20 . 51 . . . . Level 2 29 | . . 46 14 45 . . . . Level 3 26 | . . 17 54 . . . . . Level 4 11 | . . 1 30 . . . . . Level 5 . | . . . . . . . . . High Security . | . . . . . . . . . Max Security . | . . . . . . . . . Squads Dispatched 19 | . 3 8 7 1 . . . . Investigation 4 | . . 3 1 . . . . . Extermination . | . . . . . . . . . Reinforcement 10 | . 3 3 3 1 . . . . Assault 4 | . . 2 2 . . . . . Garrison 1 | . . . 1 . . . . . Intercept . | . . . . . . . . . Searches Triggered . | . . . . . . . . . Construction Impeded 2 | . . 1 1 . . . . . Haulers Reinforced 1 | . . . . 1 . . . . Active Scanning Responses . | . . . . . . . . . Cargo Convoy Interrupts . | . . . . . . . . . Stealth | -11 -10 -9 -8 -7 -7 -7 -7 -7 --------- Run | Yrd Mat Mat Mat Fac Low Low Zio Dee Distress Signals 15 | . 2 11 2 . . . . . Communications Jammed . | . . . . . . . . . Distress Signals . | . . . . . . . . . Times Spotted 289 | . 22 76 79 3 10 10 . 89 Peak Tracking Total 38 | . 3 6 6 2 4 7 . 38 Tactical Retreats 13 | . 1 5 5 . 1 1 . . Traps | -11 -10 -9 -8 -7 -7 -7 -7 -7 ------- Run | Yrd Mat Mat Mat Fac Low Low Zio Dee Traps Triggered 5 | . 1 3 1 . . . . . Indirectly . | . . . . . . . . . Trap Hack Attempts . | . . . . . . . . . Triggered . | . . . . . . . . . Disarmed . | . . . . . . . . . Reprogrammed . | . . . . . . . . . Reused . | . . . . . . . . . Traps Extracted . | . . . . . . . . . Installed . | . . . . . . . . . Triggered . | . . . . . . . . . Machines | -11 -10 -9 -8 -7 -7 -7 -7 -7 ---------- Run | Yrd Mat Mat Mat Fac Low Low Zio Dee Machines Disabled 10 | . . 3 4 . . . . 3 Max in Single Turn 1 | . . 1 1 . . . . 1 Machines Repaired . | . . . . . . . . . Machines Dismantled . | . . . . . . . . . Machines Sabotaged . | . . . . . . . . . Overloaded Fab Kills . | . . . . . . . . . Hacking | -11 -10 -9 -8 -7 -7 -7 -7 -7 --------- Run | Yrd Mat Mat Mat Fac Low Low Zio Dee Machines Accessed 27 | . 6 11 8 2 . . . . Terminals 18 | . 5 6 5 2 . . . . Fabricators . | . . . . . . . . . Repair Stations 4 | . . 2 2 . . . . . Recycling Units 4 | . 1 2 1 . . . . . Scanalyzers 1 | . . 1 . . . . . . Garrison Access . | . . . . . . . . . Total Hacks 75 | . 19 33 17 6 . . . . Successful 28 | . 7 9 8 4 . . . . Failed 46 | . 12 23 9 2 . . . . Catastrophic 8 | . 1 4 3 . . . . . Database Lockouts 1 | . . 1 . . . . . . Manual 48 | . 18 10 7 6 . . 7 . Terminals 42 | . 12 17 7 6 . . . . Fabricators . | . . . . . . . . . Repair Stations 15 | . . 8 7 . . . . . Recycling Units 15 | . 7 5 3 . . . . . Scanalyzers 3 | . . 3 . . . . . . Garrison Access . | . . . . . . . . . Terminal Hacks 8 | . 2 2 1 3 . . . . Robot Analysis 2 | . . 1 1 . . . . . Branch Access Points 1 | . . . . 1 . . . . Emergency Access Points 1 | . 1 . . . . . . . Unreport Threat 2 | . . . . 2 . . . . Locate Traps 1 | . 1 . . . . . . . Zone Layout 1 | . . 1 . . . . . . Fabricator Hacks . | . . . . . . . . . Repair Station Hacks 10 | . . 4 6 . . . . . Scan Component 5 | . . 2 3 . . . . . Repair 5 | . . 2 3 . . . . . Recycling Unit Hacks 2 | . 1 . 1 . . . . . Retrieve Components 2 | . 1 . 1 . . . . . Scanalyzer 2 | . . 2 . . . . . . Insert Component 1 | . . 1 . . . . . . Analyze 1 | . . 1 . . . . . . Garrison Access Hacks . | . . . . . . . . . Unauthorized Hacks 6 | . 4 1 . 1 . . . . Terminals 2 | . . 1 . 1 . . . . Botnet 1 | . . . . 1 . . . . Operators 1 | . . 1 . . . . . . Fabricators . | . . . . . . . . . Repair Stations . | . . . . . . . . . Recycling Units 4 | . 4 . . . . . . . Monitor 1 | . 1 . . . . . . . Reject 1 | . 1 . . . . . . . Recyclers 1 | . 1 . . . . . . . Mask 1 | . 1 . . . . . . . Scanalyzers . | . . . . . . . . . Garrison Access . | . . . . . . . . . Data Cores Recovered . | . . . . . . . . . Used . | . . . . . . . . . Hacking Detections 25 | . 5 10 8 2 . . . . Full Trace Events 2 | . . 2 . . . . . . Feedback Events . | . . . . . . . . . Feedback Blocked . | . . . . . . . . . Robot Schematics Acquired 3 | . . . . . . . 3 . Robots Built . | . . . . . . . . . Authchips . | . . . . . . . . . Time . | . . . . . . . . . Total Robot Build Rating . | . . . . . . . . . Part Schematics Acquired 15 | . . 1 . . . . 14 . Parts Built . | . . . . . . . . . Authchips . | . . . . . . . . . Time . | . . . . . . . . . Total Part Build Rating . | . . . . . . . . . Parts Repaired 5 | . . 2 3 . . . . . Time 172 | . . 70 102 . . . . . Parts Recycled . | . . . . . . . . . Recycled Matter . | . . . . . . . . . Retrieved Matter . | . . . . . . . . . Retrieved Components 11 | . 3 . 8 . . . . . Parts Scanalyzed 1 | . . 1 . . . . . . Part Schematics Acquired 1 | . . 1 . . . . . . Parts Damaged . | . . . . . . . . . Bothacking | -11 -10 -9 -8 -7 -7 -7 -7 -7 ------------ Run | Yrd Mat Mat Mat Fac Low Low Zio Dee Used RIF Installer . | . . . . . . . . . Robots Hacked 2 | . . . . . . . 2 . Non-combat . | . . . . . . . . . Combat 2 | . . . . . . . 2 . Robot Hacks Applied 2 | . . . . . . . 2 . parse_system 2 | . . . . . . . 2 . Relay Couplers Released . | . . . . . . . . . Fabnet Peak Effective % . | . . . . . . . . . Robots Rewired 2 | . . . . . 2 . . . Allies Hacked . | . . . . . . . . . Hacks Repelled . | . . . . . . . . . Allies | -11 -10 -9 -8 -7 -7 -7 -7 -7 -------- Run | Yrd Mat Mat Mat Fac Low Low Zio Dee Total Allies 9 | . . . . . 2 . 7 . Largest Group 7 | . . . . . 2 1 7 7 Highest-Rated Group 343 | . . . . . 45 21 343 343 Highest-Rated Ally 96 | . . . . . 25 21 96 96 Total Orders . | . . . . . . . . . Ally Attacks 103 | . . . . . 1 . . 102 Total Damage 2456 | . . . . . 30 . . 2426 Kills 21 | . . . . . . . . 21 Allies Corrupted . | . . . . . . . . . Allies Melted . | . . . . . . . . . Intel | -11 -10 -9 -8 -7 -7 -7 -7 -7 ------- Run | Yrd Mat Mat Mat Fac Low Low Zio Dee Robot Analysis Total 2 | . . 1 1 . . . . . Derelict Logs Recovered 4 | . . . . . . 1 3 . Drone Launches . | . . . . . . . . . Drone Recoveries . | . . . . . . . . . Exploration | -11 -10 -9 -8 -7 -7 -7 -7 -7 ------------- Run | Yrd Mat Mat Mat Fac Low Low Zio Dee Turns Passed 19302 | 118 1278 4524 3457 725 965 962 4059 3214 Spaces Moved 6638 | 82 567 1539 1115 246 354 373 1301 1061 Core 4 | 4 . . . . . . . . Treads 5755 | . 99 1539 1115 246 354 373 1301 728 Legs 333 | . . . . . . . . 333 Wheels 546 | 78 468 . . . . . . . Hover . | . . . . . . . . . Flight . | . . . . . . . . . Fastest Speed 50 | 50 90 240 238 242 242 242 242 210 Average Speed 229 | 87 140 240 240 242 242 242 242 237 Slowest Speed 400 | 90 160 240 242 242 242 242 242 400 Overloaded Moves . | . . . . . . . . . Propulsion Burnouts . | . . . . . . . . . Robots Hopped . | . . . . . . . . . Cave-ins Triggered . | . . . . . . . . . Exploration Rate (%) 60 | 4 83 89 79 6 57 59 86 85 Regions Visited 8 Branch Regions 4 Pre-discovered Areas . | . . . . . . . . . Known Exits Taken 3 | . . . 1 1 . . 1 . Unknown Exits Taken 5 | 1 1 1 . . 1 1 . . Scrap Searched 8 | . . . . . 4 2 2 . Spaces Dug . | . . . . . . . . . Terrain Destroyed 290 | . . 104 87 . 28 51 . 20 Melee . | . . . . . . . . . Projectile 8 | . . . 1 . 1 2 . 4 AOE 282 | . . 104 86 . 27 49 . 16 Terrain Rammed . | . . . . . . . . . Walls Destroyed . | . . . . . . . . . Machines Disabled . | . . . . . . . . . Actions | -11 -10 -9 -8 -7 -7 -7 -7 -7 --------- Run | Yrd Mat Mat Mat Fac Low Low Zio Dee Total 9751 | 109 911 2110 1601 351 404 406 2214 1645 Wait 2048 | . 248 253 215 50 . 9 882 391 Move 6630 | 81 566 1538 1114 245 353 372 1300 1061 Hop . | . . . . . . . . . Pick Up 125 | 10 11 38 25 7 2 1 10 21 Fast Attach 33 | 7 2 6 5 2 . 1 . 10 Attach 25 | . 1 3 3 2 1 3 . 12 Detach 10 | . . . 1 2 . . . 7 Swap 172 | 1 12 62 36 11 9 5 9 27 Drop 155 | 2 2 59 37 9 4 . 9 33 Fire 502 | 8 69 138 151 15 31 15 1 74 Melee 8 | . . . . . 4 . 3 1 Ram . | . . . . . . . . . Kick . | . . . . . . . . . Crush 28 | . . 13 14 1 . . . . Escape Stasis . | . . . . . . . . . Rewire 15 | . . . . 7 . . . 8 Trap . | . . . . . . . . . Miscellaneous . | . . . . . . . . . Route ------- -11/Scrapyard -10/Materials (discovered 3 exits: *Mat x2 / [*Min]) -9/Materials (discovered 4 exits: *Mat x3 / [*Sto]) -8/Materials (discovered 3 exits: *Fac x3) -7/Factory (discovered 2 exits: *Low x2) -7/Lower Caves -7/Lower Caves (discovered 2 exits: [*Fac] / *Zio) -7/Zion -7/Deep Caves (discovered 1 exit: [*Pro]) History --------- Turn | Location | Event 18 | -11/Scrapyard | Discovered new exit (range 16) 119 | -11/Scrapyard | Entered Materials 305 | -10/Materials | Build established: Mutant 564 | -10/Materials | Discovered new exit (range 13) 753 | -10/Materials | Discovered new exit (range 5) 1264 | -10/Materials | Discovered new exit (range 4) 1397 | -10/Materials | Entered another Materials area 1397 | -9/Materials | Evolved 2 slots: Propulsion x1, Utility x1 2064 | -9/Materials | Repaired Beam Rifle 2110 | -9/Materials | Central database locked down 2122 | -9/Materials | Discovered new exit (range 15) 2155 | -9/Materials | Build established: Scavenger-Mutant 3184 | -9/Materials | Core integrity fell below 50% 4086 | -9/Materials | Repaired Imp. Heat Sink 4153 | -9/Materials | Discovered new exit (range 3) 4740 | -9/Materials | Discovered new exit (range 13) 5397 | -9/Materials | First assault squad dispatched 5743 | -9/Materials | Discovered new exit (range 15) 5921 | -9/Materials | Entered another Materials area 5921 | -8/Materials | Evolved 2 slots: Propulsion x1, Utility x1 6021 | -8/Materials | Garrison activated, responded to threat 6490 | -8/Materials | Repaired Lgt. Armor Plating 6518 | -8/Materials | Build established: Mutant 6721 | -8/Materials | First assault squad dispatched 6861 | -8/Materials | Discovered new exit (range 7) 7228 | -8/Materials | Discovered new exit (range 16) 7580 | -8/Materials | Identified exit to Factory 8536 | -8/Materials | Build established: Scavenger-Mutant 8960 | -8/Materials | Discovered exit to Factory (range 7) 9080 | -8/Materials | Repaired Imp. Shield Generator 9114 | -8/Materials | Repaired Cooling System 9293 | -8/Materials | Build established: Mutant 9378 | -8/Materials | Entered Factory 9378 | -7/Factory | Evolved 2 slots: Power x1, Utility x1 9708 | -7/Factory | Identified exit to Lower Caves 10103 | -7/Factory | Entered Lower Caves 10599 | -7/Lower Caves | Build established: Scavenger-Mutant 10827 | -7/Lower Caves | Attacked by a faux Warlord 11039 | -7/Lower Caves | Discovered new exit (range 13) 11068 | -7/Lower Caves | Entered another Lower Caves area 11068 | -7/Lower Caves | Accompanied by 1 ally 11106 | -7/Lower Caves | Discovered new exit (range 6) 11109 | -7/Lower Caves | Destroyed 7 combat bots 11111 | -7/Lower Caves | Lost 3 parts (2n1u) 11142 | -7/Lower Caves | Learned Factory garrison access intel 12020 | -7/Lower Caves | Discovered new exit (range 3) 12030 | -7/Lower Caves | Entered Zion 12076 | -7/Zion | Learned Factory stockpile data 12113 | -7/Zion | Given A8's code to call for help 12263 | -7/Zion | Acquired unknown access codes intercepted by a Zionite 12493 | -7/Zion | Identified exit to Deep Caves 12539 | -7/Zion | Learned Factory emergency access door positions 12838 | -7/Zion | Given the Hacking Drone Bay 12848 | -7/Zion | Found Prototype Device 12958 | -7/Zion | Identified Hacking Drone Bay 13596 | -7/Zion | Received a hallucinogenic algorithm 14227 | -7/Zion | Gained Derelict followers 14651 | -7/Zion | Met Imprinter 15619 | -7/Zion | Enhanced Grunt warped into view, answering call for help 15624 | -7/Zion | Enhanced Grunt warped into view, answering call for help 16015 | -7/Zion | Opened final containment barrier to the Deep Caves 16056 | -7/Zion | Saw the warning signs outside the Deep Caves entrance 16089 | -7/Zion | Entered Deep Caves 16089 | -7/Deep Caves | Accompanied by 7 allies 16415 | -7/Deep Caves | Attacked by Z-Imprinter 16426 | -7/Deep Caves | Allies destroyed Z-Imprinter 16920 | -7/Deep Caves | Found Surveybot 24 Chip 16924 | -7/Deep Caves | Found Surveybot 24 Scanner 17350 | -7/Deep Caves | Discovered new exit (range 6) 17705 | -7/Deep Caves | Spotted AG-56683 17752 | -7/Deep Caves | Lost 5 allies 17757 | -7/Deep Caves | Destroyed AG-56683 17896 | -7/Deep Caves | Triggered Deep Caves wall 17901 | -7/Deep Caves | Exposed GOLEM chamber 17925 | -7/Deep Caves | Destroyed AS-54975 17929 | -7/Deep Caves | Destroyed AS-82376 17946 | -7/Deep Caves | Spotted AG-53460 17953 | -7/Deep Caves | Lost 5 parts (1p1n2u1w) 17956 | -7/Deep Caves | Destroyed 40 combat bots 17995 | -7/Deep Caves | Core integrity fell below 50% 18002 | -7/Deep Caves | Destroyed AG-53460 18008 | -7/Deep Caves | Found GOLEM Unit 18032 | -7/Deep Caves | Lost 8 parts (1p3n2u2w) 18084 | -7/Deep Caves | Destroyed 13 combat bots 18553 | -7/Deep Caves | Found Prototype Device 18553 | -7/Deep Caves | Identified Supersonic Drone Bay 18643 | -7/Deep Caves | Found GOLEM Unit 18647 | -7/Deep Caves | Found GOLEM Unit 18668 | -7/Deep Caves | Build established: Scavenger-Golem 18768 | -7/Deep Caves | Found GOLEM Unit 19107 | -7/Deep Caves | Build established: Golem 19267 | -7/Deep Caves | Core integrity fell below 20% 19303 | -7/Deep Caves | Destroyed by 2D-OOM(z) with Zionite Laser-S Last Messages --------------- 19267_ Lgt. Treads destroyed. 19270_ Discarded Asb. Focal Cannon. 19273_ Asb. Nanovents destroyed. 19274_ GOLEM Unit beginning Asb. Nanovents integration. 19275_ Asb. Nanovents integration complete. 19278_ 3Q-093(z) destroyed. 19281_ Asb. Flux Generator destroyed. 19282_ GOLEM Unit beginning Asb. Flux Generator integration. 19282_ Discarded Asb. Nanovents. 19284_ Lgt. Treads destroyed. 19287_ 44-QEP(z) destroyed. 19287_ Asb. Biocell Array destroyed. 19290_ Dropped Zio. Biocell. 19291_ Extracted 56 energy. 19296_ Med. Treads destroyed. 19298_ Extracted 56 energy. 19301_ Neutron Cannon destroyed. 19302_ Extracted 56 energy. Map ----- +----------------------------------------------------+ | | | | | | | | | | | | | | | ?????????????????????????????????????????????????? | | ?????????????????????????????????????????????????? | | ?????????????????????????????????????????????????? | | ??????????????????????? ?? ?????????????????? ? | | ????????????????????? ?? #?# ?????????????? # | | ?????????????????? !! #? ## ??????????? | | ????????????????# =%% ;# ?????????? | | ?????????????? !! ?????????? | | ?????????????? % ?????????? | | ????????????? z[= ????????? | | ###?????????? !%! ????????? | | #????????? ! """?????????"" | | #????????? """"????????"" | | #????????? z """"???????""" | | #???????? """"???????""" | | ##??????? """"??????" | | #?????? """"????????"" | | #?????? """""???????"" | | #?????? @ """""??????""" | | ##?????? """""?????"""" | | ###??????? """""???? " " | | #?????????? """"???""%=% | | ??????????? """"???"!! ! | | ???????????? """"???""% | | ???????????? """"????"/ | | ???????????? """"????""" * | | ???????????? """"?????""""%= | | ??????????? """"?????? | | ??????????? """"??????"" | | ??????????? """""?????""" | | ##????##### """""?????"""" | | ##??## ## """"" ????""" | | ##?# ## """" ""?"""" | | #?# # """" """"" | | ### """" """ | | ## """" | | """""""""""%= | | """"""""" ! | | | | ### | | #?# | | #?### [ | | #???# ! ! | +----------------------------------------------------+ Best States ------------- Heat Dissipation 65 Energy Generation 49 Energy Capacity 1100 Matter Stores 300 Matter Capacity 300 Sight Range 16 Terrain Scan Density 10 Armor Coverage 450 Resistance: KI 20 Resistance: TH 10 Propulsion Shielding 33 Evasion (%) 44 Targeting Accuracy 6 Core Analysis 6 Recoil Reduction 4 Offensive Hacking 20 Defensive Hacking 10 Item Schematics ----------------- Imp. Flight Unit | -9/Materials | Scanalyzed System Restoration Module | -7/Zion | Archive Energy Well | -7/Zion | Archive Imp. Trap Extractor | -7/Zion | Archive Imp. Particle Charger | -7/Zion | Archive Xenon Bombardment Thruster | -7/Zion | Archive Angular Momentum Engine | -7/Zion | Archive Gravmag System | -7/Zion | Archive Hvy. Treads | -7/Zion | Archive Adv. Plasma Cannon | -7/Zion | Archive Adv. Sensor Array | -7/Zion | Archive Med. Reactive Plating | -7/Zion | Archive Fusion Compressor | -7/Zion | Archive Adv. Terrain Scanner | -7/Zion | Archive Lrn. Phase Cannon | -7/Zion | Archive Robot Schematics ------------------ M-14 Sweeper | -7/Zion | Archive K-01 Serf | -7/Zion | Archive M-28 Smith | -7/Zion | Archive Fabricated ------------ Nothing Alien Tech Used ----------------- None Achievements -------------- Adventurer Are We The Baddies? Boltbath Help From High Places Killing Spree Overkill Signs Are For Wimps That's One Door That Should Stay Closed Challenges ------------ None Game ------ Seed VortexAntigravSplitter Manual? 0 Play Time 02:28:17 Cumulative 89.3 hours Start 2024.08.23 @ 22:05:10 End 2024.08.24 @ 00:38:09 Sessions 1 Manual Loads 0 Difficulty Rogue Special Mode None Game No. 61 Rogue 48 Adventurer 13 Explorer 0 Win Type - Total 1 Types 1/0/0/0/0/0/0/0/0 Lore% 33 Gallery% 47 Achievement% 43 Wizard Run 0 Options --------- Layout 2 ASCII 0 Keyboard 1 Movement Numpad Keybinds 0 Fullscreen 2 Font 16/Swanston Map View 55x47 Zoom Use 0% Tactical HUD 1 Map Filters NONE Filters NONE Steam 0 RUN: 8cdd28a4-d005-4e25-8955-50acfe234e5b